Cogmind - Beta 10.2 @@@ ROGUE MODE // 2021.04.26 @ 22:19:44 Player: Andru7428 Result: Destroyed by G-47 Trooper with Particle Gun Performance ------------- Evolutions (0) 0 Regions Visited (4) 800 Robots Destroyed (24) 120 Value Destroyed (602) 602 Prototype IDs (3) 60 Alien Tech Used (0) 0 Bonus (126) 126 TOTAL SCORE: 1708 Bonus ------- Follower Combat Kills 155 Friendly Fire -29 Cogmind --------- Core Integrity 0/250 Matter 200/300 Energy 160/160 System Corruption 0% Temperature Cool (12) Movement Walking (120) Location -9/Mines Parts ------- > --- POWER (1) -------- Light Nuclear Core > --- PROPULSION (2) --- Flexi-carbon Leg Flexi-carbon Leg > --- UTILITY (2) ------ (None) > --- WEAPON (2) ------- Assault Rifle > --- INVENTORY (4) ---- Improved Aluminum Leg Improved Aluminum Leg High-capacity Matter Pod (200) Peak State ------------ > --- POWER ------------ Light Nuclear Core > --- PROPULSION ------- Flexi-carbon Leg Flexi-carbon Leg > --- UTILITY ---------- Bomb Drone Bay > --- WEAPON ----------- Light Assault Rifle Bore Cannon > --- INVENTORY -------- Improved Aluminum Leg Improved Aluminum Leg Assault Rifle [Rating: 33] Favorites ----------- Power Light Nuclear Core Engine Light Ion Engine Power Core Light Nuclear Core Propulsion Flexi-carbon Leg Leg Flexi-carbon Leg Utility Large Storage Unit Device Bomb Drone Bay Storage Large Storage Unit Weapon Assault Rifle Energy Gun Heavy EM Pulse Gun Ballistic Gun Assault Rifle Ballistic Cannon Bore Cannon Build | -11 -10 -10 -10 -9 ------- Run | Scr Mat Min Exi Min Slots Evolved . | . . . . . Power . | . . . . . Propulsion . | . . . . . Utility . | . . . . . Weapon . | . . . . . Parts Attached 39 | 6 19 10 3 1 Power 9 | 1 4 3 1 . Engine 6 | 1 4 1 . . Core 3 | . . 2 1 . Reactor . | . . . . . Propulsion 10 | 2 5 3 . . Treads . | . . . . . Leg 10 | 2 5 3 . . Wheel . | . . . . . Hover . | . . . . . Flight . | . . . . . Utility 4 | 1 2 . 1 . Device 1 | . . . 1 . Storage 3 | 1 2 . . . Processor . | . . . . . Hackware . | . . . . . Protection . | . . . . . Artifact . | . . . . . Weapon 16 | 2 8 4 1 1 Energy Gun 4 | 1 2 1 . . Energy Cannon . | . . . . . Ballistic Gun 10 | 1 6 2 . 1 Ballistic Cannon 2 | . . 1 1 . Launcher . | . . . . . Special Weapon . | . . . . . Impact Weapon . | . . . . . Slashing Weapon . | . . . . . Piercing Weapon . | . . . . . Special Melee Weapon . | . . . . . Unidentified Prototypes 1 | . . . 1 . Parts Lost 10 | . . 6 3 1 Power 3 | . . 2 1 . Propulsion 1 | . . 1 . . Utility 1 | . . . 1 . Weapon 5 | . . 3 1 1 Highest Loss Streak 4 | . . 2 3 4 Average Slot Usage (%) 94 | . 98 99 84 57 Engine 4 | . 13 . . . Core 8 | . . 13 13 14 Leg 27 | . 27 28 28 28 Device 3 | . . . 13 . Storage 20 | . 27 28 1 . Energy Gun 3 | . 4 6 . . Ballistic Gun 20 | . 23 21 14 14 Ballistic Cannon 3 | . . . 12 . Naked Turns . | . . . . . Heaviest Build 42 | 11 40 42 40 7 Greatest Support 40 | 20 26 40 40 40 Greatest Overweight (x) 3 | 1 3 1 . . Average Overweight (x) . | . . . . . Largest Inventory Capacity 16 | 6 16 16 16 4 Average Capacity 12 | 5 15 16 4 4 Most Carried 16 | 6 16 16 16 3 Average Carried 11 | 4 13 15 4 3 Final Capacity 16 | 6 16 16 4 4 Final Carried 16 | 6 16 16 4 3 Class Distribution -------------------- 74% | Mutant 25% | Scavenger-Mutant Dominant Class ---------------- Mutant | -10/Materials Mutant | -10/Mines Scavenger-Mutant | -10/Exiles Scavenger-Mutant | -9/Mines Resources | -11 -10 -10 -10 -9 ----------- Run | Scr Mat Min Exi Min Matter Collected 943 | 199 414 255 40 35 Remotely . | . . . . . Salvage Created 752 | . 511 206 . 35 Parts 51 | . 42 7 . 2 Haulers Intercepted 2 | . 2 . . . Recyclers Shooed . | . . . . . Parts Field Recycled . | . . . . . Retrieved Matter . | . . . . . Parts Self-Destructed . | . . . . . Prevented . | . . . . . Kills | -11 -10 -10 -10 -9 ------- Run | Scr Mat Min Exi Min Combat Hostiles Destroyed 16 | . 9 6 . 1 Guns 15 | . 8 6 . 1 AOE 1 | . 1 . . . Classes Destroyed 7 | . 6 1 . . Worker 3 | . 3 . . . Hauler 2 | . 2 . . . Mechanic 1 | . 1 . . . Watcher 2 | . 2 . . . Swarmer 3 | . 3 . . . Grunt 12 | . 6 5 . 1 Demolisher 1 | . . 1 . . Best Kill Streak 4 | . 4 2 . 1 Combat Bots Only 3 | . 3 2 . 1 Max Kills in Single Turn 1 | . 1 1 . 1 Gunslinging . | . . . . . Exploded 1 | . 1 . . . Melee . | . . . . . Uniques/NPCs Destroyed . | . . . . . Combat | -11 -10 -10 -10 -9 -------- Run | Scr Mat Min Exi Min Damage Taken 1786 | . 344 641 628 173 Core 256 | . 104 28 51 73 Absorbed by Shields . | . . . . . Core Remaining (%) 100 | 100 . . . . Volleys Fired 92 | . 46 25 16 5 Largest 2 | . 2 2 2 2 Hottest 77 | . 65 77 77 40 Shots Fired 176 | . 91 50 29 6 Gun 160 | . 91 49 14 6 Cannon 16 | . . 1 15 . Launcher . | . . . . . Special . | . . . . . Kinetic 148 | . 67 46 29 6 Thermal . | . . . . . Explosive . | . . . . . Electromagnetic 28 | . 24 4 . . Robot Hit Streak 10 | . 8 10 4 6 Robot Miss Streak 6 | . 5 3 6 1 Penetration Max . | . . . . . Secondary Targets 2 | . 2 . . . Max Gunslinging Chain 1 | . 1 . . . Shots Hit Robots 100 | . 47 35 13 5 Core Hits 43 | . 24 13 4 2 Critical Hits 4 | . 1 . 3 . Critical Kills 1 | . 1 . . . Critical Parts Destroyed 2 | . . . 2 . Melee Attacks . | . . . . . Impact . | . . . . . Slashing . | . . . . . Piercing . | . . . . . Sneak Attacks . | . . . . . Combat Hostiles . | . . . . . Follow-up Attacks . | . . . . . Damage Inflicted 1364 | . 607 496 208 53 Guns 1223 | . 607 484 79 53 Cannons 141 | . . 12 129 . Explosions . | . . . . . Melee . | . . . . . Ramming . | . . . . . Kinetic 1152 | . 461 430 208 53 Thermal . | . . . . . Explosive . | . . . . . Electromagnetic 212 | . 146 66 . . Impact . | . . . . . Slashing . | . . . . . Piercing . | . . . . . Highest Corruption . | . . . . . Average Corruption . | . . . . . Corruption Purged . | . . . . . Overload Shots . | . . . . . Overflow Damage . | . . . . . Projectiles . | . . . . . Explosions . | . . . . . Melee . | . . . . . Knockbacks 3 | . . 1 2 . Impact . | . . . . . Kinetic 3 | . . 1 2 . Secondary . | . . . . . Self-Inflicted Damage . | . . . . . Shots . | . . . . . Rammed . | . . . . . Targets Rammed . | . . . . . Kicked . | . . . . . Crushed . | . . . . . Highest Temperature 156 | . 33 57 156 34 Average Temperature 33 | . 13 11 87 13 Received Heat Transfer 492 | . 78 318 . 96 Siege Activations . | . . . . . Robots Corrupted . | . . . . . Combat Hostiles . | . . . . . Parts Fried . | . . . . . Impact Corruptions . | . . . . . Robots Melted . | . . . . . Combat Hostiles . | . . . . . Parts Melted 1 | . . 1 . . Heat Transferred . | . . . . . Parts Sabotaged . | . . . . . Parts Stolen . | . . . . . Parts Stripped . | . . . . . Power Chain Reactions . | . . . . . Missiles Intercepted . | . . . . . Alert | -11 -10 -10 -10 -9 ------- Run | Scr Mat Min Exi Min Peak Influence 244 | . 244 166 . 20 Initial 18 | . . 18 . . Average 85 | . 97 80 . 10 Maximum Alert Level 1 | . 1 . . . Low Security (%) 95 | 100 89 100 . 100 Level 1 4 | . 10 . . . Level 2 . | . . . . . Level 3 . | . . . . . Level 4 . | . . . . . Level 5 . | . . . . . High Security . | . . . . . Max Security . | . . . . . Squads Dispatched 2 | . 2 . . . Investigation 1 | . 1 . . . Extermination . | . . . . . Reinforcement 1 | . 1 . . . Assault . | . . . . . Garrison . | . . . . . Intercept . | . . . . . Construction Impeded . | . . . . . Haulers Reinforced . | . . . . . Stealth | -11 -10 -10 -10 -9 --------- Run | Scr Mat Min Exi Min Distress Signals 2 | . 2 . . . Communications Jammed . | . . . . . Distress Signals . | . . . . . Times Spotted 39 | . 17 11 8 3 Peak Tracking Total 4 | . 4 2 3 3 Tactical Retreats 2 | . 2 . . . Traps | -11 -10 -10 -10 -9 ------- Run | Scr Mat Min Exi Min Traps Triggered 4 | . 4 . . . Indirectly . | . . . . . Trap Hack Attempts . | . . . . . Triggered . | . . . . . Disarmed . | . . . . . Reprogrammed . | . . . . . Reused . | . . . . . Traps Extracted . | . . . . . Installed . | . . . . . Triggered 1 | . 1 . . . Machines | -11 -10 -10 -10 -9 ---------- Run | Scr Mat Min Exi Min Machines Disabled 3 | . 2 . 1 . Max in Single Turn 1 | . 1 . 1 . Machines Sabotaged . | . . . . . Garrisons Compromised . | . . . . . Overloaded Fab Kills . | . . . . . Fab Network Shutdowns . | . . . . . Hacking | -11 -10 -10 -10 -9 --------- Run | Scr Mat Min Exi Min Machines Accessed 6 | . 4 2 . . Terminals 5 | . 4 1 . . Fabricators . | . . . . . Repair Stations . | . . . . . Recycling Units . | . . . . . Scanalyzers . | . . . . . Garrison Access . | . . . . . Total Hacks 16 | . 13 3 . . Successful 9 | . 6 3 . . Failed 7 | . 7 . . . Catastrophic 1 | . 1 . . . Database Lockouts . | . . . . . Manual 8 | . 6 2 . . Terminals 15 | . 13 2 . . Fabricators . | . . . . . Repair Stations . | . . . . . Recycling Units . | . . . . . Scanalyzers . | . . . . . Garrison Access . | . . . . . Terminal Hacks 6 | . 3 3 . . Part Schematic 2 | . 1 1 . . Robot Schematic 1 | . . 1 . . Prototype ID Bank 1 | . 1 . . . Open Door 1 | . . 1 . . Zone Layout 1 | . 1 . . . Fabricator Hacks . | . . . . . Repair Station Hacks . | . . . . . Recycling Unit Hacks . | . . . . . Scanalyzer . | . . . . . Garrison Access Hacks . | . . . . . Unauthorized Hacks 3 | . 3 . . . Terminals 3 | . 3 . . . Track 1 | . 1 . . . Botnet 1 | . 1 . . . Operators 1 | . 1 . . . Fabricators . | . . . . . Repair Stations . | . . . . . Recycling Units . | . . . . . Scanalyzers . | . . . . . Garrison Access . | . . . . . Data Cores Recovered . | . . . . . Used . | . . . . . Hacking Detections 4 | . 4 . . . Full Trace Events 1 | . 1 . . . Feedback Events . | . . . . . Feedback Blocked . | . . . . . Robot Schematics Acquired 1 | . . 1 . . Robots Built . | . . . . . Matter . | . . . . . Time . | . . . . . Total Robot Build Rating . | . . . . . Part Schematics Acquired 2 | . 1 1 . . Parts Built . | . . . . . Matter . | . . . . . Time . | . . . . . Total Part Build Rating . | . . . . . Parts Repaired . | . . . . . Time . | . . . . . Parts Recycled . | . . . . . Recycled Matter . | . . . . . Retrieved Matter . | . . . . . Retrieved Components . | . . . . . Parts Scanalyzed . | . . . . . Part Schematics Acquired . | . . . . . Parts Damaged . | . . . . . Bothacking | -11 -10 -10 -10 -9 ------------ Run | Scr Mat Min Exi Min Used RIF Installer . | . . . . . Robots Hacked . | . . . . . Non-combat . | . . . . . Combat . | . . . . . Robot Hacks Applied . | . . . . . Relay Couplers Released . | . . . . . Robots Rewired . | . . . . . Allies Hacked . | . . . . . Hacks Repelled . | . . . . . Allies | -11 -10 -10 -10 -9 -------- Run | Scr Mat Min Exi Min Total Allies 3 | . . 3 . . Largest Group 3 | . . 3 1 . Highest-Rated Group 40 | . . 40 16 . Highest-Rated Ally 16 | . . 16 16 . Total Orders 7 | . . . 7 . STAY 3 | . . . 3 . FOLLOW 1 | . . . 1 . RETURN 3 | . . . 3 . Ally Attacks 52 | . . 32 20 . Total Damage 348 | . . 345 3 . Kills 7 | . . 7 . . Allies Corrupted . | . . . . . Allies Melted . | . . . . . Intel | -11 -10 -10 -10 -9 ------- Run | Scr Mat Min Exi Min Robot Analysis Total . | . . . . . Derelict Logs Recovered 1 | . . 1 . . Drone Launches 20 | . . . 20 . Drone Recoveries 4 | . . . 4 . Exploration | -11 -10 -10 -10 -9 ------------- Run | Scr Mat Min Exi Min Turns Passed 3347 | 71 1115 1218 931 12 Spaces Moved 2023 | 51 589 706 676 1 Core 14 | 14 . . . . Treads . | . . . . . Legs 2009 | 37 589 706 676 1 Wheels . | . . . . . Hover . | . . . . . Flight . | . . . . . Fastest Speed 50 | 50 120 120 120 120 Average Speed 134 | 110 149 137 120 120 Slowest Speed 210 | 150 210 150 120 120 Overloaded Moves . | . . . . . Propulsion Burnouts . | . . . . . Robots Hopped . | . . . . . Cave-ins Triggered . | . . . . . Exploration Rate (%) 47 | 4 74 99 56 2 Regions Visited 4 Branch Regions 3 Pre-discovered Areas 1 | . . 1 . . Known Exits Taken . | . . . . . Unknown Exits Taken 4 | 1 1 1 1 . Scrap Searched 1 | . . 1 . . Spaces Dug . | . . . . . Terrain Destroyed 14 | . . 1 13 . Melee . | . . . . . Projectile 14 | . . 1 13 . AOE . | . . . . . Terrain Rammed . | . . . . . Walls Destroyed . | . . . . . Machines Disabled . | . . . . . Actions | -11 -10 -10 -10 -9 --------- Run | Scr Mat Min Exi Min Total 2484 | 62 735 906 774 7 Wait 268 | . 53 154 61 . Move 2019 | 50 588 705 675 1 Hop . | . . . . . Pick Up 40 | 6 18 7 9 . Fast Attach 18 | 6 11 . 1 . Attach 11 | . 2 6 2 1 Detach 1 | . . . 1 . Swap 10 | . 6 4 . . Drop 25 | . 11 5 9 . Fire 92 | . 46 25 16 5 Melee . | . . . . . Ram . | . . . . . Kick . | . . . . . Crush . | . . . . . Escape Stasis . | . . . . . Rewire . | . . . . . Trap . | . . . . . Miscellaneous . | . . . . . Route ------- -11/Scrapyard -10/Materials (discovered 4 exits: [*Mat x2] / *Min x2) -10/Mines (discovered 3 exits: [*Mat x2] / [*Exi]) -10/Exiles -9/Mines History --------- Turn | Location | Event 8 | -11/Scrapyard | Discovered new exit (range 15) 72 | -11/Scrapyard | Entered Materials 311 | -10/Materials | Build established: Mutant 444 | -10/Materials | Discovered new exit (range 15) 546 | -10/Materials | Discovered new exit (range 10) 882 | -10/Materials | Discovered new exit (range 16) 1171 | -10/Materials | Discovered new exit (range 8) 1187 | -10/Materials | Entered Mines 1210 | -10/Mines | Core integrity fell below 50% 1440 | -10/Mines | Assisted by bots powering up and referring to "LRC-V3" 1454 | -10/Mines | Discovered new exit (range 14) 1561 | -10/Mines | Learned location of Mines (-9) 1826 | -10/Mines | Assembled infested the area 1830 | -10/Mines | Deemed a non-threat by the Exiles lab entrance 1831 | -10/Mines | Assisted by a Guerilla fighting off Assembled 1831 | -10/Mines | Discovered new exit (range 5) 2166 | -10/Mines | Found the Drone Emporium 2172 | -10/Mines | Found Prototype Device 2293 | -10/Mines | Discovered new exit (range 6) 2405 | -10/Mines | Entered Exiles 2405 | -10/Exiles | Accompanied by 1 ally 2438 | -10/Exiles | Met 8R-AWN 2449 | -10/Exiles | Discovered new exit (range 15) 2453 | -10/Exiles | Identified Bomb Drone Bay 2590 | -10/Exiles | Met EX-HEX 2742 | -10/Exiles | Build established: Scavenger-Mutant 3069 | -10/Exiles | Met EX-DEC 3262 | -10/Exiles | Attacked by the Exiles 3336 | -10/Exiles | Entered Mines 3343 | -9/Mines | Core integrity fell below 20% 3348 | -9/Mines | Destroyed by G-47 Trooper with Particle Gun Last Messages --------------- 03306_ Penetrated by HV Slug. 03306_ HV Slug penetrates Wall. 03307_ Penetrated by HV Slug. 03307_ HV Slug penetrates Wall. 03309_ Penetrated by HV Slug. 03310_ The unstable cave ceiling collapses. 03310_ HV Slug penetrates Earth. 03310_ HV Slug penetrates Machine. 03320_ Penetrated by HV Slug. 03320_ HV Slug penetrates Wall. 03320_ Acquired Lgt. Nuclear Core. 03322_ Penetrated by HV Slug. 03322_ Critical hit. 03322_ Bomb Drone Bay destroyed. 03322_ HV Slug penetrates Wall. LOCATION=UNKNOWN GOAL=ESCAPE 03338_ Lgt. Assault Rifle destroyed. 03342_ G-34 Mercenary destroyed. 03344_ Acquired 35 matter. Map ----- +----------------------------------------------------+ | | | | | | | | | | | | | | | | | | | | | | | | | | | | | | | | | | | | | | | | | | | ???????????????????????????????? | | ???????????????????????????????? | | ????????????????????????#####??? | | ???????????????????????## ##?? | | ???????????????????????#=@= #?? | | ???????????????????????# gg #?? | | ???????????????????????## #?? | | ????????????????????????# #?? | | ???????????????????????? #?? | | ????????????????????????## ##?? | | ?????????????????????????####??? | | ???????????????????????????????? | | ???????????????????????????????? | | ???????????????????????????????? | | ???????????????????????????????? | | ???????????????????????????????? | | ???????????????????????????????? | | ???????????????????????????????? | | ???????????????????????????????? | | ???????????????????????????????? | | ???????????????????????????????? | | ???????????????????????????????? | | ???????????????????????????????? | | ???????????????????????????????? | | ???????????????????????????????? | | ???????????????????????????????? | | ???????????????????????????????? | | ???????????????????????????????? | | ???????????????????????????????? | +----------------------------------------------------+ Best States ------------- Heat Dissipation 25 Energy Generation 14 Energy Capacity 160 Matter Stores 300 Matter Capacity 300 Sight Range 16 Terrain Scan Density 10 Evasion (%) 50 Item Schematics ----------------- Lrg. Storage Unit | -10/Materials | Hacked Hcp. Storage Unit | -10/Mines | Hacked Robot Schematics ------------------ G-34 Mercenary | -10/Mines | Hacked Fabricated ------------ Nothing Alien Tech Used ----------------- None Achievements -------------- None Challenges ------------ None Game ------ Seed HypercooledLightpackWell Manual? 0 Play Time 00:19:54 Cumulative 126.9 hours Start 2021.04.26 @ 21:58:51 End 2021.04.26 @ 22:19:44 Sessions 1 Manual Loads 0 Difficulty Rogue Special Mode None Game No. 96 Rogue 96 Adventurer 0 Explorer 0 Win Type - Total 1 Types 1/0/0/0/0/0/0/0/0 Lore% 62 Gallery% 69 Achievement% 56 Wizard Run 0 Options --------- ASCII 0 Keyboard 1 Movement Numpad Keybinds 0 Fullscreen 1 Font 12/Smallcaps Map View 83x54 Tactical HUD 1 Map Filters NONE Filters NONE Steam 1 RUN: 074c5939-3308-4391-8371-c419d04eae52